Cogmind - Beta 16 @@@ ROGUE MODE // 2025.10.28 @ 09:04:11 Player: Scringis Result: Destroyed by L-31 Rogue with Katana Performance ------------- Evolutions (1) 500 Regions Visited (2) 400 Robots Destroyed (25) 125 Value Destroyed (705) 705 Prototype IDs (3) 60 Alien Tech Used (0) 0 Bonus (200) 200 TOTAL SCORE: 1990 Bonus ------- Pacifist 200 Cogmind --------- Core Integrity 0/400 Matter 297/300 Energy 117/125 System Corruption 0% Temperature Cool (39) Movement Walking (190) Ox1 Location -9/Materials Parts ------- > --- POWER (1) -------- Light Ion Engine > --- PROPULSION (2) --- Improved Aluminum Leg > --- UTILITY (4) ------ Heat Sink Small Storage Unit Medium Armor Plating > --- WEAPON (2) ------- Spread Laser Light Assault Rifle > --- INVENTORY (8) ---- (None) Peak State ------------ > --- POWER ------------ Light Nuclear Core > --- PROPULSION ------- Light Treads Light Treads > --- UTILITY ---------- Improved Heat Sink Small Storage Unit > --- WEAPON ----------- Light Assault Rifle Light Assault Rifle > --- INVENTORY -------- Light Ion Engine Small Laser Beam Rifle Light Assault Rifle [Rating: 11] Favorites ----------- Power Ion Engine Engine Ion Engine Power Core Light Nuclear Core Propulsion Light Treads Treads Light Treads Leg Improved Aluminum Leg Utility Small Storage Unit Device Heat Sink Storage Small Storage Unit Protection Light Armor Plating Weapon Light Assault Rifle Energy Gun Beam Rifle Energy Cannon Particle Cannon Ballistic Gun Light Assault Rifle Build | -11 -10 -9 ------- Run | Yrd Mat Mat Slots Evolved 2 | . . 2 Power . | . . . Propulsion . | . . . Utility 2 | . . 2 Weapon . | . . . Parts Attached 25 | 7 . 18 Power 5 | 1 . 4 Engine 4 | 1 . 3 Core 1 | . . 1 Reactor . | . . . Propulsion 4 | 2 . 2 Treads 2 | 2 . . Leg 2 | . . 2 Wheel . | . . . Hover . | . . . Flight . | . . . Utility 6 | 1 . 5 Device 2 | . . 2 Storage 1 | 1 . . Processor . | . . . Hackware . | . . . Protection 3 | . . 3 Artifact . | . . . Weapon 10 | 3 . 7 Energy Gun 4 | 1 . 3 Energy Cannon 2 | . . 2 Ballistic Gun 4 | 2 . 2 Ballistic Cannon . | . . . Launcher . | . . . Special Weapon . | . . . Impact Weapon . | . . . Slashing Weapon . | . . . Piercing Weapon . | . . . Special Melee Weapon . | . . . Unidentified Prototypes 3 | . . 3 Parts Lost 8 | . . 8 Power 2 | . . 2 Propulsion 3 | . . 3 Utility 1 | . . 1 Weapon 2 | . . 2 Highest Loss Streak 3 | . . 3 To Critical Strikes 1 | . . 1 Average Backups 2 | 1 1 2 Power . | . 1 . Propulsion . | . . . Utility . | . . . Weapon 1 | . . 1 Tool/Special . | . . . Unused Backups 1 | . . 1 Power . | . . . Propulsion . | . . . Utility . | . . . Weapon 1 | . . 1 Tool/Special . | . . . Average Slot Usage (%) 67 | . 85 65 Engine 7 | . 14 6 Treads 13 | . 28 11 Leg 4 | . . 5 Device 1 | . . 2 Storage 11 | . 14 11 Protection 5 | . . 6 Energy Gun 4 | . . 4 Energy Cannon 1 | . . 1 Ballistic Gun 15 | . 28 14 Peak Build Rating 11 | 6 6 11 Average Rating 6 | 4 6 7 On Entrance 4 | . 6 6 Avg Prop Armor Cover (%) . | . . . Naked Turns . | . . . Heaviest Build 20 | 12 12 20 Greatest Support 40 | 40 40 40 Greatest Overweight (x) 3 | . . 3 Average Overweight (x) . | . . . Largest Inventory Capacity 8 | 8 8 8 Average Capacity 7 | 7 8 8 Most Carried 6 | 4 1 6 Average Carried 2 | . 1 2 Final Capacity 8 | 8 8 8 Final Carried 1 | 1 1 . Class Distribution -------------------- 84% | Mutant 15% | Scavenger-Mutant Dominant Class ---------------- Mutant | -10/Materials Mutant | -9/Materials Resources | -11 -10 -9 ----------- Run | Yrd Mat Mat Matter Collected 590 | 207 . 383 Remotely . | . . . Salvage Created 906 | . . 906 Parts 69 | . . 69 Haulers Intercepted 2 | . . 2 Recyclers Shooed 1 | . . 1 Parts Field Recycled . | . . . Retrieved Matter . | . . . Parts Self-Destructed . | . . . Prevented . | . . . Parts Restored . | . . . Kills | -11 -10 -9 ------- Run | Yrd Mat Mat Combat Hostiles Destroyed 22 | . . 22 Guns 18 | . . 18 Cannons 3 | . . 3 Classes Destroyed 6 | . . 6 Hauler 2 | . . 2 Watcher 1 | . . 1 Swarmer 7 | . . 7 Grunt 8 | . . 8 Duelist 1 | . . 1 Sentry 6 | . . 6 Best Kill Streak 5 | . . 5 Combat Bots Only 5 | . . 5 Max Kills in Single Turn 1 | . . 1 Gunslinging . | . . . Exploded . | . . . Melee . | . . . Uniques/NPCs Destroyed . | . . . Combat | -11 -10 -9 -------- Run | Yrd Mat Mat Hostile Shots Fired 177 | . . 177 Missed 45 | . . 45 Hits 132 | . . 132 Melee 4 | . . 4 Projectile 128 | . . 128 Critical Strikes 4 | . . 4 Damage Taken 1597 | . . 1597 Core 425 | . . 425 Absorbed by Shields . | . . . Core Remaining (%) 100 | 100 100 . Volleys Fired 108 | . . 108 Largest 2 | . . 2 Hottest 124 | . . 124 Shots Fired 208 | . . 208 Gun 189 | . . 189 Cannon 19 | . . 19 Launcher . | . . . Special . | . . . Kinetic 166 | . . 166 Thermal 42 | . . 42 Explosive . | . . . Electromagnetic . | . . . Robot Hit Streak 12 | . . 12 Robot Miss Streak 8 | . . 8 Penetration Max . | . . . Secondary Targets 3 | . . 3 Max Gunslinging Chain 1 | . . 1 Shots Hit Robots 129 | . . 129 Core Hits 72 | . . 72 Critical Kills . | . . . Critical Parts Destroyed . | . . . Critical Strikes . | . . . Melee Attacks . | . . . Impact . | . . . Slashing . | . . . Piercing . | . . . Sneak Attacks . | . . . Combat Hostiles . | . . . Follow-up Attacks . | . . . Damage Inflicted 1279 | . . 1279 Guns 1068 | . . 1068 Cannons 204 | . . 204 Explosions . | . . . Melee . | . . . Ramming 7 | . . 7 Kinetic 869 | . . 869 Thermal 403 | . . 403 Explosive . | . . . Electromagnetic . | . . . Impact . | . . . Slashing . | . . . Piercing . | . . . Highest Corruption . | . . . Average Corruption . | . . . Corruption Purged . | . . . Corruption Blocked . | . . . Overload Shots . | . . . Overflow Damage 10 | . . 10 Projectiles 10 | . . 10 Explosions . | . . . Melee . | . . . Knockbacks . | . . . Impact . | . . . Kinetic . | . . . Secondary . | . . . Self-Inflicted Damage . | . . . Shots . | . . . Rammed 1 | . . 1 Targets Rammed 3 | . . 3 Kicked 2 | . . 2 Crushed . | . . . Highest Temperature 222 | . . 222 Average Temperature 57 | . . 57 Received Heat Transfer 555 | . . 555 Siege Activations . | . . . Martial Activations . | . . . Shielding Activations . | . . . Robots Disrupted . | . . . Combat Hostiles . | . . . Robots Corrupted . | . . . Combat Hostiles . | . . . Parts Fried . | . . . Impact Corruptions . | . . . Robots Melted 1 | . . 1 Combat Hostiles 1 | . . 1 Parts Melted 2 | . . 2 Heat Transferred 720 | . . 720 Parts Sabotaged . | . . . Parts Stolen . | . . . Parts Stripped . | . . . Power Chain Reactions . | . . . Alert | -11 -10 -9 ------- Run | Yrd Mat Mat Maximum Alert Level . | . . . Low Security (%) 100 | 100 100 100 Level 1 . | . . . Level 2 . | . . . Level 3 . | . . . Level 4 . | . . . Level 5 . | . . . High Security . | . . . Max Security . | . . . Peak Influence 169 | . . 169 Initial . | . . . Average 66 | . . 81 Influence Increases 611 | . . 611 Destroy 0b10 Robot/C 440 | . . 440 Destroy 0b10 Robot/NC 15 | . . 15 Destroy Leader 126 | . . 126 Lose Combat Pursuer 30 | . . 30 Influence Decreases 442 | . . 442 Time Decay 362 | . . 362 Lost Part 80 | . . 80 Squads Dispatched 1 | . . 1 Investigation . | . . . Extermination . | . . . Reinforcement 1 | . . 1 Assault . | . . . Garrison . | . . . Intercept . | . . . Searches Triggered . | . . . Construction Impeded . | . . . Haulers Reinforced . | . . . Active Scanning Responses . | . . . Cargo Convoy Interrupts . | . . . Stealth | -11 -10 -9 --------- Run | Yrd Mat Mat Distress Signals 3 | . . 3 Communications Jammed . | . . . Distress Signals . | . . . Times Spotted 39 | . 5 34 Peak Tracking Total 7 | . 7 6 Tactical Retreats 2 | . . 2 Traps | -11 -10 -9 ------- Run | Yrd Mat Mat Traps Triggered 1 | . . 1 Indirectly . | . . . Trap Hack Attempts . | . . . Triggered . | . . . Disarmed . | . . . Reprogrammed . | . . . Reused . | . . . Traps Extracted . | . . . Installed . | . . . Triggered . | . . . Machines | -11 -10 -9 ---------- Run | Yrd Mat Mat Machines Disabled . | . . . Max in Single Turn . | . . . Machines Repaired . | . . . Machines Dismantled . | . . . Machines Sabotaged . | . . . Overloaded Fab Kills . | . . . Hacking | -11 -10 -9 --------- Run | Yrd Mat Mat Machines Accessed 1 | . . 1 Terminals . | . . . Fabricators . | . . . Repair Stations . | . . . Recycling Units 1 | . . 1 Scanalyzers . | . . . Garrison Access . | . . . Total Hacks 1 | . . 1 Successful 1 | . . 1 Failed . | . . . Catastrophic . | . . . Database Lockouts . | . . . Manual . | . . . Terminals . | . . . Fabricators . | . . . Repair Stations . | . . . Recycling Units 1 | . . 1 Scanalyzers . | . . . Garrison Access . | . . . Terminal Hacks . | . . . Fabricator Hacks . | . . . Repair Station Hacks . | . . . Recycling Unit Hacks 1 | . . 1 Retrieve Components 1 | . . 1 Scanalyzer . | . . . Garrison Access Hacks . | . . . Unauthorized Hacks . | . . . Terminals . | . . . Fabricators . | . . . Repair Stations . | . . . Recycling Units . | . . . Scanalyzers . | . . . Garrison Access . | . . . Data Cores Recovered . | . . . Used . | . . . Hacking Detections . | . . . Full Trace Events . | . . . Feedback Events . | . . . Feedback Blocked . | . . . Robot Schematics Acquired . | . . . Robots Built . | . . . Authchips . | . . . Time . | . . . Total Robot Build Rating . | . . . Part Schematics Acquired . | . . . Parts Built . | . . . Authchips . | . . . Time . | . . . Total Part Build Rating . | . . . Part Studies Acquired . | . . . Parts Repaired . | . . . Time . | . . . Parts Recycled . | . . . Recycled Matter . | . . . Retrieved Matter . | . . . Retrieved Components 9 | . . 9 Parts Scanalyzed . | . . . Part Schematics Acquired . | . . . Parts Damaged . | . . . Bothacking | -11 -10 -9 ------------ Run | Yrd Mat Mat Used RIF Installer . | . . . Robots Hacked . | . . . Non-combat . | . . . Combat . | . . . Robot Hacks Applied . | . . . Relay Couplers Released . | . . . Fabnet Peak Effective % . | . . . Robots Rewired . | . . . Allies Hacked . | . . . Hacks Repelled . | . . . Allies | -11 -10 -9 -------- Run | Yrd Mat Mat Total Allies . | . . . Largest Group . | . . . Highest-Rated Group . | . . . Highest-Rated Ally . | . . . Total Orders . | . . . Ally Attacks . | . . . Total Damage . | . . . Kills . | . . . Allies Corrupted . | . . . Allies Melted . | . . . Intel | -11 -10 -9 ------- Run | Yrd Mat Mat Active Infowar (turns) . | . . . Robot Analysis Total . | . . . Derelict Logs Recovered . | . . . Drone Launches . | . . . Drone Recoveries . | . . . Exploration | -11 -10 -9 ------------- Run | Yrd Mat Mat Turns Passed 1132 | 79 130 923 Spaces Moved 459 | 51 82 326 Core 38 | 15 . 23 Treads 272 | 36 82 154 Legs 149 | . . 149 Wheels . | . . . Hover . | . . . Flight . | . . . Fastest Speed 50 | 50 160 120 Average Speed 152 | 127 160 154 Slowest Speed 200 | 160 160 200 Overloaded Moves . | . . . Propulsion Burnouts . | . . . Robots Hopped . | . . . Potential Cave-ins . | . . . Cave-ins Triggered . | . . . Exploration Rate (%) 18 | 4 14 36 Regions Visited 2 Branch Regions . Pre-discovered Areas . | . . . Known Exits Taken . | . . . Unknown Exits Taken 2 | 1 1 . Scrap Searched . | . . . Spaces Dug . | . . . Terrain Destroyed . | . . . Melee . | . . . Projectile . | . . . AOE . | . . . Terrain Rammed . | . . . Walls Destroyed . | . . . Machines Disabled . | . . . Actions | -11 -10 -9 --------- Run | Yrd Mat Mat Total 720 | 66 81 573 Wait 89 | . . 89 Move 457 | 50 81 326 Hop . | . . . Pick Up 26 | 8 . 18 Fast Attach . | . . . Attach 21 | 7 . 14 Detach . | . . . Swap 6 | . . 6 Drop 10 | 1 . 9 Fire 108 | . . 108 Melee . | . . . Ram . | . . . Kick 2 | . . 2 Crush 1 | . . 1 Escape Stasis . | . . . Rewire . | . . . Trap . | . . . Miscellaneous . | . . . Route ------- -11/Scrapyard -10/Materials -9/Materials (discovered 1 exit: [*Min]) History --------- Turn | Location | Event 5 | -11/Scrapyard | Discovered new exit (range 16) 80 | -11/Scrapyard | Entered Materials 196 | -10/Materials | Discovered new exit (range 10) 210 | -10/Materials | Entered another Materials area 210 | -9/Materials | Evolved 2 slots: Utility x2 307 | -9/Materials | Build established: Mutant 519 | -9/Materials | Discovered new exit (range 9) 670 | -9/Materials | Core integrity fell below 50% 733 | -9/Materials | Lost 3 parts (1p2n) 747 | -9/Materials | Core integrity fell below 20% 1133 | -9/Materials | Destroyed by L-31 Rogue with Katana Last Messages --------------- 00990_ Y-45 Defender destroyed. 00996_ Acquired Med. Armor Plating. 00998_ Dropped Lgt. Armor Plating. 01001_ Acquired Spread Laser. 01003_ Dropped Beam Rifle. 01006_ Aluminum Leg destroyed. 01010_ Acquired Heat Sink. 01032_ Y-45 Defender destroyed. 01035_ Acquired 31 matter. 01038_ Acquired 1 matter. 01040_ Y-45 Defender destroyed. 01041_ Acquired 1 matter. 01046_ R-06 Scavenger collects Heat Sink. 01068_ W-16 Scout destroyed. 01073_ Acquired 2 matter. 01119_ W-16 Scout sends out distress signal. 01126_ Critical hit (Burn: +37). 01129_ Y-45 Defender destroyed. 01129_ Switching to secondary target: L-31 Rogue. Map ----- +----------------------------------------------------+ | | | | | | | | | | | | | | | | | | | | | | | | | | | | | | | | | | | | | | | | | ?????????????????????????########????????????????? | | ????????????????????????? ?????????????????? | | ????????????????????????# """ ""?????????????????? | | ######################### """ """????????????????? | | + """ """ """????????????? | | ############## ###@l #??????????? | | #????????????# #?# w [%g ! +??????????? | | ! % #????????????# #?#######/######???????????? | | =#######????????????# #??????????????????????????? | | %#??????????????????# #??????????????????????????? | | +##?????????????????+ ??????????????????????????? | | !!##????????????????# #??????????????????????????? | | !!%#????????????????# #??????????????????????????? | | ##????????????????? ???????????????????????????? | | #?????????????????? ???????????????????????????? | | #??????????????????+???????????????????????????? | | #??????????????????????????????????????????????? | | #??????????????????????????????????????????????? | | " #??????????????????????????????????????????????? | | ###??????????????????????????????????????????????? | | ?????????????????????????????????????????????????? | | ?????????????????????????????????????????????????? | | ?????????????????????????????????????????????????? | | ?????????????????????????????????????????????????? | | ?????????????????????????????????????????????????? | | ?????????????????????????????????????????????????? | | #????????????????????????????????????????????????? | | #????????????????????????????????????????????????? | | #????????????????????????????????????????????????? | | #????????????????????????????????????????????????? | +----------------------------------------------------+ Best States ------------- Heat Dissipation 42 Energy Generation 14 Energy Capacity 250 Matter Stores 300 Matter Capacity 300 Sight Range 16 Terrain Scan Density 10 Armor Coverage 225 Evasion (%) 55 Recoil Reduction 2 Item Schematics ----------------- None Robot Schematics ------------------ None Fabricated ------------ Nothing Repaired ---------- Nothing Studied --------- None Alien Tech Used ----------------- None Achievements -------------- None Challenges ------------ None Game ------ Seed CargoFrostScrap Manual? 0 Play Time 00:10:02 Cumulative 25.3 hours Start 2025.10.28 @ 08:57:04 End 2025.10.28 @ 09:04:11 Sessions 1 Manual Loads 0 Difficulty Rogue Special Mode None Game No. 78 Rogue 78 Adventurer 0 Explorer 0 Win Type - Total 0 Types 0/0/0/0/0/0/0/0/0/0 Lore% 19 Gallery% 22 Achievement% 17 Wizard Run 0 Options --------- Layout 1 ASCII 0 Keyboard 0 Movement Mouse Keybinds 0 Fullscreen 2 Font 24/Smallcaps Map View 50x35 Zoom Use 0% Tactical HUD 1 Map Filters NONE Filters NONE Steam 1 RUN: deb5a68c-7cf7-4e89-a694-63e5b0c190fc